[Event "USA Championship 2022"]
[Site "Saint Louis"]
[Date "2022.10.14"]
[Round "9.7"]
[White "Niemann, Hans Moke"]
[Black "So, Wesley"]
[Result "1/2-1/2"]
[ECO "C54"]
[WhiteElo "2699"]
[BlackElo "2774"]
[Annotator "TA"]
[PlyCount "53"]
[EventDate "2022.09.05"]
[EventType "tourn"]
[EventCountry "USA"]
[SourceTitle "playchess.com"]
[Source "ChessBase"]
[SourceQuality "1"]
[TimeControl "40/5400+30:1800+30"]

{[%evp 12,53,12,12,19,14,14,11,14,6,11,12,8,21,13,16,20,0,0,-6,0,-10,-11,-10,-6,-27,-12,-30,-28,-37,-24,-29,-27,-46,-17,-31,-9,-16,4,-31,0,-22,14,-33]} 1. e4 {[%emt 0:05:46]} e5 {[%emt 0:00:25]} 2. Nf3 {[%emt 0:00:53]} Nc6 {[%emt 0:00:07]} 3. Bc4 {[%emt 0:00:16]} Bc5 {[%emt 0:00:07]} 4. c3 {[%emt 0:00:10]} Nf6 {[%emt 0:00:06]} 5. d3 {[%emt 0:00:06]} d6 {[%emt 0:00:05]} 6. O-O {[%emt 0:00:08]} O-O {[%emt 0:00:26]} 7. Re1 {[%emt 0:00:10]} a5 {[%emt 0:00:10] C54: Giuoco Piano: 4 c3 Nf6, main lines with 5 d4 and 5 d3.} 8. h3 {[%emt 0:00:10]} h6 {[%emt 0:02:48]} 9. Nbd2 {[%emt 0:00:08][%cal Bb1d2,Bd2f1,Bf1g3][%mdl 32]} Be6 {[%emt 0:00:03]} 10. Bb5 {[%emt 0:00:06]} Qb8 {[%emt 0:00:04]} 11. Nf1 {[%emt 0:01:10]} Qa7 {[%emt 0:00:03]} 12. Re2 {[%emt 0:00:22] 12.d4 is the modern continuation.} a4 {[%emt 0:01:14]} 13. Ng3 {[%emt 0:00:22]} Qa5 {[%emt 0:00:19]} 14. Bxc6 {[%emt 0:00:10]} bxc6 {[%emt 0:00:07] [#]} 15. Qc2 $146 {[%emt 0:00:40]} ({Predecessor:} 15. Bd2 Bb6 16. Qc2 Kh7 17. c4 Qa7 18. Bc3 Ng8 19. Rd2 c5 20. Rf1 c6 21. Nh2 {½-½ (41) Duda,J (2750)-Ding,L (2806) Madrid 2022}) 15... Qb5 {[%emt 0:06:11]} 16. c4 {[%emt 0:00:31]} Qb8 {[%emt 0:02:16]} 17. Bd2 {[%emt 0:01:35]} Re8 {[%emt 0:05:12]} 18. Rb1 {[%emt 0:02:48]} Nd7 {[%emt 0:10:36]} 19. Nh4 {[%emt 0:00:00]} d5 {[%emt 0:04:25]} 20. Nf3 {[%emt 0:13:42][%cal Of3e5]} dxc4 {[%emt 0:11:34]} 21. dxc4 {[%emt 0:00:00]} Qb6 {[%emt 0:11:15]} 22. b4 {[%emt 0:00:00]} axb3 $1 {[%emt 0:01:18]} 23. axb3 {[%emt 0:00:00]} Bb4 {[%emt 0:00:47]} 24. Be3 {[%emt 0:00:00]} Bc5 {[%emt 0:01:16]} 25. Bd2 {[%emt 0:00:00]} Bb4 {[%emt 0:00:49]} (25... Bd4 $5) 26. Be3 {[%emt 0:00:00]} Bc5 {[%emt 0:00:06]} 27. Bd2 {[%emt 0:01:02] Weighted Error Value: White=0.08 (flawless) /Black=0.08 (flawless)} (27. b4 $11 Bxe3 28. Rxe3) 1/2-1/2

[Event "USA Championship 2022"]
[Site "Saint Louis"]
[Date "2022.10.15"]
[Round "10.1"]
[White "Liang, Awonder"]
[Black "Dominguez Perez, Leinier"]
[Result "1/2-1/2"]
[ECO "B51"]
[WhiteElo "2608"]
[BlackElo "2747"]
[Annotator "TA"]
[PlyCount "90"]
[EventDate "2022.09.05"]
[EventType "tourn"]
[EventCountry "USA"]
[SourceTitle "playchess.com"]
[Source "ChessBase"]
[SourceQuality "1"]
[TimeControl "40/5400+30:1800+30"]

{[%evp 9,90,8,26,12,19,15,20,0,0,0,8,0,0,8,0,8,12,0,0,11,17,13,0,0,0,9,0,0,0,0,0,0,0,0,0,0,0,-6,7,-2,0,0,0,0,0,0,0,0,0,0,0,0,0,0,0,0,0,0,0,0,0,0,0,0,0,0,0,0,0,0,0,0,0,0,0,0,0,0,0,0,0,0,0]} 1. e4 {[%emt 0:00:01]} c5 {[%emt 0:03:18]} 2. Nf3 {[%emt 0:00:06]} d6 {[%emt 0:00:05]} 3. Bb5+ {[%emt 0:00:06]} Nd7 {[%emt 0:00:06]} 4. O-O {[%emt 0:00:07]} a6 {[%emt 0:00:05]} 5. Bd3 {[%emt 0:00:05]} Ngf6 {[%emt 0:00:09]} 6. Re1 {[%emt 0:00:07] B51: Sicilian: Moscow Variation (3 Bb5+) without 3...Bd7.} e6 {[%emt 0:00:07] The position is equal.} 7. c3 {[%emt 0:00:11]} b5 {[%emt 0:00:24]} 8. a4 {[%emt 0:00:01]} Bb7 {[%emt 0:06:48]} 9. Bc2 {[%emt 0:00:02]} c4 {[%emt 0:01:04]} 10. d4 {[%emt 0:00:01]} cxd3 {[%emt 0:00:13]} 11. Qxd3 {[%emt 0:00:02]} Nc5 {[%emt 0:00:55][%csl LRd3,LRe4]} 12. Qe2 {[%emt 0:00:01]} bxa4 {[%emt 0:00:51]} 13. Be3 {[%emt 0:00:02] [#] Black must now prevent Bxc5.} Nfd7 {[%emt 0:01:03]} ({But not} 13... Ncxe4 14. Bxa4+ Nd7 15. Na3 $14) 14. Bd4 {[%emt 0:02:52]} e5 {[%emt 0:03:04]} 15. Bxc5 {[%emt 0:00:02]} Nxc5 {[%emt 0:00:03]} 16. Bxa4+ {[%emt 0:00:13]} Nxa4 {[%emt 0:00:09]} 17. Rxa4 {[%emt 0:00:02]} Be7 {[%emt 0:01:09]} 18. c4 {[%emt 0:00:18]} Bc6 {[%emt 0:02:07]} 19. Ra2 {[%emt 0:01:38]} a5 {[%emt 0:06:10]} 20. Nc3 {[%emt 0:03:59]} Qb8 {[%emt 0:25:03]} 21. Nd5 {[%emt 0:10:01]} Bd8 {[%emt 0:01:09] [#]} 22. c5 $146 {[%emt 0:08:50]} ({Predecessor:} 22. Qd3 O-O 23. b3 g6 24. h4 Ra7 25. h5 Rb7 26. Nd2 Kh8 27. Rd1 gxh5 28. Ne3 {½-½ (64) Pospisil,L (2502)-Acevedo Villalba,A (2524) ICCF email 2018}) 22... O-O {[%emt 0:01:40]} 23. Qc2 {[%emt 0:04:50]} Re8 {[%emt 0:09:33]} 24. Nd2 {[%emt 0:13:33]} a4 {[%emt 0:07:57]} 25. Rea1 {[%emt 0:02:45]} Ra7 {[%emt 0:10:04]} 26. h3 {[%emt 0:05:39]} h6 {[%emt 0:01:12]} 27. Nc3 {[%emt 0:05:14]} dxc5 {[%emt 0:04:09]} 28. Nxa4 {[%emt 0:01:09]} Be7 {[%emt 0:00:19]} 29. Nxc5 {[%emt 0:05:43]} Rxa2 {[%emt 0:00:58]} 30. Rxa2 {[%emt 0:00:01]} Rc8 {[%emt 0:00:22]} 31. Ra5 {[%emt 0:02:00]} Qb4 {[%emt 0:05:00]} 32. Qc3 {[%emt 0:00:30]} Qxc3 {[%emt 0:00:36]} 33. bxc3 {[%emt 0:00:02]} Be8 {[%emt 0:00:19] This bishop pair is nice.} 34. Na4 {[%emt 0:05:09]} Bg5 {[%emt 0:06:40]} 35. Nf3 {[%emt 0:01:36]} Bxa4 {[%emt 0:00:54]} 36. Rxa4 {[%emt 0:00:03]} Rxc3 {[%emt 0:00:02]} 37. Nxg5 {[%emt 0:00:35]} ({Avoid the trap} 37. Nxe5 $2 Rc1+ 38. Kh2 Bf4+ 39. g3 Bxe5 $19) 37... hxg5 $11 {[%emt 0:00:07][%mdl 4096] Endgame KR-KR} 38. Rb4 {[%emt 0:00:04]} f6 {[%emt 0:00:35]} 39. Rb7 {[%emt 0:00:17]} Kh7 {[%emt 0:00:17]} 40. f3 {[%emt 0:00:05]} Rc2 {[%emt 0:00:13]} 41. Ra7 {[%emt 0:30:08]} Rb2 {[%emt 0:30:07]} 42. Rd7 {[%emt 0:00:05]} Rc2 {[%emt 0:00:05]} 43. Ra7 {[%emt 0:00:03]} Rb2 {[%emt 0:00:06]} 44. Rd7 {[%emt 0:00:02]} Rc2 {[%emt 0:00:06]} 45. Ra7 {[%emt 0:00:03]} Rb2 {[%emt 0:00:53] An interesting draw.  Weighted Error Value: White=0.02 (flawless) /Black=0.01 (flawless)} 1/2-1/2

[Event "USA Championship 2022"]
[Site "Saint Louis"]
[Date "2022.10.15"]
[Round "10.2"]
[White "Aronian, Levon"]
[Black "So, Wesley"]
[Result "1/2-1/2"]
[ECO "A28"]
[WhiteElo "2755"]
[BlackElo "2774"]
[Annotator "TA"]
[PlyCount "35"]
[EventDate "2022.09.05"]
[EventType "tourn"]
[EventCountry "USA"]
[SourceTitle "playchess.com"]
[Source "ChessBase"]
[SourceQuality "1"]
[TimeControl "40/5400+30:1800+30"]

{[%evp 9,35,10,6,-13,18,0,0,0,0,0,0,0,0,0,0,10,0,-8,0,-17,-19,-21,0,-18,0,-27,0,-20]} 1. c4 {[%emt 0:00:02]} e5 {[%emt 0:00:50]} 2. Nc3 {[%emt 0:00:13]} Nf6 {[%emt 0:00:14]} 3. Nf3 {[%emt 0:00:07]} Nc6 {[%emt 0:00:05]} 4. e4 {[%emt 0:00:06]} Bb4 {[%emt 0:00:23]} 5. d3 {[%emt 0:00:07]} d6 {[%emt 0:00:14]} 6. Be2 {[%emt 0:00:04] A28: English Opening: Four Knights Variation.} Bg4 {[%emt 0:09:47]} 7. O-O {[%emt 0:00:17][%cal Be1g1,Bg1h1,Bh1g2][%mdl 32]} Bxf3 {[%emt 0:02:41]} 8. Bxf3 {[%emt 0:00:14]} Bc5 {[%emt 0:00:05]} 9. Kh1 {[%emt 0:01:32] [#]} a5 $146 {[%emt 0:04:45]} ({Predecessor:} 9... Nd4 10. Bg4 Nxg4 11. Qxg4 O-O 12. Bh6 Qf6 {½-½ (12) Kraus,T (2455)-Jurcik,M (2426) Pardubice 2020}) 10. Qe1 {[%emt 0:04:05]} Nd4 {[%emt 0:10:24]} 11. Bd1 {[%emt 0:00:16] Prevents Nc2.} Ne6 {[%emt 0:00:08]} 12. g3 {[%emt 0:09:49]} h5 {[%emt 0:08:29]} 13. h4 {[%emt 0:01:35]} c6 {[%emt 0:08:56]} 14. Kg2 {[%emt 0:05:40]} Bd4 {[%emt 0:03:05]} 15. Ne2 {[%emt 0:01:50]} Bc5 {[%emt 0:02:20]} 16. Nc3 {[%emt 0:00:06]} Bd4 {[%emt 0:00:05]} 17. Ne2 {[%emt 0:00:41]} Bc5 {[%emt 0:00:06]} 18. Nc3 {[%emt 0:01:21] A rather calm draw.  Weighted Error Value: White=0.05 (flawless) /Black=0.08 (flawless)} 1/2-1/2

[Event "USA Championship 2022"]
[Site "Saint Louis"]
[Date "2022.10.15"]
[Round "10.3"]
[White "Sevian, Samuel"]
[Black "Robson, Ray"]
[Result "1/2-1/2"]
[ECO "D38"]
[WhiteElo "2684"]
[BlackElo "2690"]
[Annotator "TA"]
[PlyCount "73"]
[EventDate "2022.09.05"]
[EventType "tourn"]
[EventCountry "USA"]
[SourceTitle "playchess.com"]
[Source "ChessBase"]
[SourceQuality "1"]
[TimeControl "40/5400+30:1800+30"]

{[%evp 12,73,18,8,12,6,13,12,4,6,10,4,1,9,15,21,25,16,24,27,26,13,20,9,16,0,0,0,0,0,0,0,0,-2,0,0,31,31,31,11,31,11,31,11,11,11,33,10,58,10,71,-256,-256,-258,-258,-258,-258,-258,0,-258,0,-258,0,-258]} 1. d4 {[%emt 0:00:01]} Nf6 {[%emt 0:04:18]} 2. c4 {[%emt 0:00:17]} e6 {[%emt 0:00:24]} 3. Nf3 {[%emt 0:00:30]} d5 {[%emt 0:00:22]} 4. Nc3 {[%emt 0:00:35]} Bb4 {[%emt 0:00:47]} 5. Qa4+ {[%emt 0:00:40]} Nc6 {[%emt 0:00:51]} 6. e3 {[%emt 0:01:03]} O-O {[%emt 0:00:38]} 7. Bd2 {[%emt 0:00:42]} dxc4 {[%emt 0:01:01] D38: Queen's Gambit Declined: Ragozin Defence (4 Nf3 Bb4).} 8. Bxc4 {[%emt 0:00:11]} Bd6 {[%emt 0:00:25]} 9. Nb5 {[%emt 0:00:14]} Bd7 {[%emt 0:03:23][%cal Oc6d4]} 10. Nxd6 {[%emt 0:01:18]} cxd6 {[%emt 0:01:11]} 11. Qa3 {[%emt 0:00:06]} Ne4 {[%emt 0:08:53]} 12. Bd3 {[%emt 0:00:46]} Nxd2 {[%emt 0:07:25]} 13. Nxd2 {[%emt 0:00:16]} d5 {[%emt 0:00:30] [#]} 14. O-O $146 {[%emt 0:03:17]} ({Predecessor:} 14. Rc1 Qb6 15. O-O Rfc8 16. Nb3 Nb4 17. Bb1 g6 18. g3 Kg7 19. Rfd1 Na6 20. Kg2 {½-½ (39) De Oliveira,D (2113)-Leenders,C (1996) IECC email 2011}) 14... Qa5 {[%emt 0:03:05]} 15. Qxa5 {[%emt 0:00:41]} Nxa5 {[%emt 0:00:09]} 16. Rfc1 {[%emt 0:28:14]} Rfc8 {[%emt 0:02:32] Prevents Rc7.} 17. f3 {[%emt 0:01:26]} a6 {[%emt 0:25:35]} 18. Nb3 {[%emt 0:21:10]} Nxb3 {[%emt 0:03:26]} 19. axb3 {[%emt 0:00:07]} Rxc1+ {[%emt 0:02:32]} 20. Rxc1 {[%emt 0:00:11]} Rc8 {[%emt 0:01:18]} 21. Rxc8+ {[%emt 0:06:35]} Bxc8 $11 {[%emt 0:00:03][%mdl 4096] Endgame KB-KB} 22. b4 {[%emt 0:03:09]} b6 {[%emt 0:09:45]} 23. e4 {[%emt 0:01:58][%cal Be3e4,Be4e5][%mdl 32]} f6 {[%emt 0:04:14]} 24. e5 {[%emt 0:04:15]} f5 {[%emt 0:03:02]} 25. h4 {[%emt 0:03:06]} g6 {[%emt 0:02:35]} 26. g4 {[%emt 0:03:00]} Kg7 {[%emt 0:01:39]} 27. Kf2 {[%emt 0:03:31]} fxg4 {[%emt 0:02:11]} 28. fxg4 {[%emt 0:00:32]} h6 {[%emt 0:00:40]} 29. g5 {[%emt 0:00:55]} h5 {[%emt 0:00:40]} (29... hxg5 $11 {might be stronger.} 30. hxg5 b5) 30. Ke3 {[%emt 0:01:15]} (30. b5 $1 $14 a5 31. Kf3) 30... b5 {[%emt 0:00:15]} (30... Bd7 $1 $11 {keeps the balance.}) 31. Bxb5 $2 {[%emt 0:00:43][%mdl 8192] [#] White is more active.} axb5 $16 {[%emt 0:00:14] KB-KP} 32. b3 {[%emt 0:00:10]} Kf7 {[%emt 0:00:34]} 33. Kd2 {[%emt 0:00:03]} Ke7 {[%emt 0:00:06]} 34. Ke3 {[%emt 0:00:05]} Kf7 {[%emt 0:00:32]} 35. Kd2 $1 {[%emt 0:00:04]} Ke7 {[%emt 0:00:28]} 36. Ke3 {[%emt 0:00:04]} Kf7 {[%emt 0:00:17]} 37. Kd2 $1 {[%emt 0:00:19][%mdl 32768] Weighted Error Value: White=0.25 (precise) /Black=0.34. An unexpected result.} 1/2-1/2

[Event "USA Championship 2022"]
[Site "Saint Louis"]
[Date "2022.10.15"]
[Round "10.4"]
[White "Moradiabadi, Elshan"]
[Black "Niemann, Hans Moke"]
[Result "0-1"]
[ECO "E61"]
[WhiteElo "2534"]
[BlackElo "2699"]
[Annotator "TA"]
[PlyCount "76"]
[EventDate "2022.09.05"]
[EventType "tourn"]
[EventCountry "USA"]
[SourceTitle "playchess.com"]
[Source "ChessBase"]
[SourceQuality "1"]
[TimeControl "40/5400+30:1800+30"]

{[%evp 12,76,49,16,32,22,27,21,21,29,27,25,7,16,2,0,0,0,0,0,0,0,0,-23,-19,-24,-25,-12,-24,0,0,0,0,0,0,0,0,0,0,-22,-10,-47,-26,-75,0,0,0,0,16,17,14,18,17,12,72,79,120,17,126,35,27,0,0,-65,-40,-489,-446]} 1. d4 {[%emt 0:00:02]} Nf6 {[%emt 0:02:15]} 2. Nf3 {[%emt 0:00:07]} g6 {[%emt 0:01:07]} 3. c4 {[%emt 0:00:38]} Bg7 {[%emt 0:00:42]} 4. Nc3 {[%emt 0:00:05]} O-O {[%emt 0:00:11]} 5. Bg5 {[%emt 0:00:04][%cal Bc1g5,Bg5h4,Bh4g3][%mdl 32]} c5 {[%emt 0:04:48]} 6. d5 {[%emt 0:00:45]} d6 {[%emt 0:00:19]} 7. e3 {[%emt 0:00:09]} Nbd7 {[%emt 0:05:12][%cal Bb8d7,Bd7f6,Bf6g4][%mdl 32] E61: King's Indian: Early deviations for White, including Smyslov System.} 8. Be2 {[%emt 0:04:01]} h6 {[%emt 0:00:28]} 9. Bh4 {[%emt 0:00:00]} g5 {[%emt 0:00:12] The position is equal.} 10. Bg3 {[%emt 0:00:02]} Nh5 {[%emt 0:00:12]} 11. Qc2 {[%emt 0:00:22][%cal Of3g5] Strongly threatening Nxg5!} Ndf6 {[%emt 0:01:18]} 12. Nd2 {[%emt 0:01:12]} a6 {[%emt 0:02:16]} 13. a4 {[%emt 0:01:50]} Bd7 {[%emt 0:01:27] [#]} 14. a5 $146 {[%emt 0:00:33]} ({Predecessor:} 14. O-O Ng4 15. Nde4 Bf5 16. Nf6+ Ngxf6 17. Qxf5 Qc8 18. Qd3 Nxg3 19. hxg3 Ng4 20. Qe4 {1-0 (51) Agrest,E (2591)-Bologan,V (2663) Istanbul 2003}) 14... Rb8 {[%emt 0:01:37]} 15. O-O {[%emt 0:01:16]} Nxg3 {[%emt 0:01:50]} 16. hxg3 {[%emt 0:00:30]} Ng4 {[%emt 0:00:44]} 17. Qd1 {[%emt 0:10:05]} f5 {[%emt 0:01:11]} 18. e4 {[%emt 0:01:18]} Ne5 {[%emt 0:00:09]} 19. exf5 {[%emt 0:09:17]} Bxf5 {[%emt 0:00:15]} 20. Nf3 {[%emt 0:06:32]} Qe8 {[%emt 0:03:11]} 21. Nxe5 {[%emt 0:03:30]} Bxe5 {[%emt 0:00:18]} 22. Bh5 {[%emt 0:03:11] Against Qg6} Bg6 {[%emt 0:00:07]} 23. Bxg6 {[%emt 0:10:18]} Qxg6 {[%emt 0:00:09]} 24. Qe2 {[%emt 0:01:41]} Rf7 {[%emt 0:01:23]} 25. Ne4 {[%emt 0:06:59][%cal Oe4c5] And now Nxc5! would win.} Bd4 {[%emt 0:02:33]} 26. Ra3 {[%emt 0:05:34]} g4 $1 {[%emt 0:00:52]} 27. Rd3 {[%emt 0:11:24]} (27. Rb3 $11) 27... Rf5 {[%emt 0:01:18]} (27... b6 $17 28. axb6 Rxb6) 28. Qd2 $11 {[%emt 0:00:03]} Rbf8 {[%emt 0:03:55]} 29. b4 $1 {[%emt 0:01:07]} Re5 {[%emt 0:08:20]} 30. bxc5 {[%emt 0:00:03]} dxc5 {[%emt 0:00:08]} 31. Rxd4 {[%emt 0:00:52]} cxd4 {[%emt 0:00:07]} 32. Nc5 {[%emt 0:00:05] Black must now prevent Nd7.} Ref5 {[%emt 0:02:43]} (32... Qf5 $1 $11) 33. Qxd4 $16 {[%emt 0:06:18]} h5 {[%emt 0:00:06][%cal Oh5h4] [#]} 34. Ne6 {[%emt 0:00:06]} ({Weaker is} 34. Nxb7 h4 35. Qe3 (35. gxh4 $2 g3 $19) 35... Qh5 $15) ({Better is} 34. Qe4 $1 $16) 34... R8f6 {[%emt 0:00:34]} (34... R8f7 $11) 35. Nf4 {[%emt 0:00:31]} (35. Qb6 $16) 35... Qh7 $1 $14 {[%emt 0:01:06]} 36. Qa7 {[%emt 0:12:57]} h4 {[%emt 0:00:30]} 37. Qxb7 {[%emt 0:01:23]} (37. Re1 $11) 37... hxg3 $15 {[%emt 0:00:42] [#] ( -> ...Qh2#). The board is on fire.} 38. fxg3 $4 {[%emt 0:00:01][%mdl 8192]} (38. Qc8+ $1 $15 Kf7 39. fxg3) 38... e5 $1 {[%emt 0:00:27][%csl LRb7,LRf4][%mdl 64] Discovered Attack.  Weighted Error Value: White=0.32/Black=0.12 (very precise)} 0-1

[Event "USA Championship 2022"]
[Site "Saint Louis"]
[Date "2022.10.15"]
[Round "10.5"]
[White "Yoo, Christopher Woojin"]
[Black "Caruana, Fabiano"]
[Result "1/2-1/2"]
[ECO "A34"]
[WhiteElo "2563"]
[BlackElo "2763"]
[Annotator "TA"]
[PlyCount "135"]
[EventDate "2022.09.05"]
[EventType "tourn"]
[EventCountry "USA"]
[SourceTitle "playchess.com"]
[Source "ChessBase"]
[SourceQuality "1"]
[TimeControl "40/5400+30:1800+30"]

{[%evp 24,134,17,12,11,33,29,41,32,30,32,39,39,28,29,38,30,29,40,29,29,29,29,29,29,31,32,33,36,16,31,0,0,0,0,10,19,8,19,16,30,23,25,0,0,0,0,0,0,0,0,0,0,0,0,0,0,0,0,0,0,0,0,0,0,0,0,0,0,0,0,0,0,0,0,0,0,0,0,0,0,0,0,0,0,0,0,0,0,0,0,0,0,0,0,0,0,0,0,0,0,0,0,0,0,0,0,0,0,0,0,0,0]} 1. Nf3 {[%emt 0:00:02]} c5 {[%emt 0:00:28]} 2. c4 {[%emt 0:00:30]} Nf6 {[%emt 0:00:21]} 3. Nc3 {[%emt 0:00:17][%cal Bb1c3,Bc3d1,Bd1e3][%mdl 32]} Nc6 {[%emt 0:00:50]} 4. g3 {[%emt 0:00:45]} d5 {[%emt 0:00:23]} 5. d4 {[%emt 0:02:22]} cxd4 {[%emt 0:04:35]} 6. Nxd4 {[%emt 0:00:05]} dxc4 {[%emt 0:00:03]} 7. Nxc6 {[%emt 0:00:23]} Qxd1+ {[%emt 0:00:05]} 8. Nxd1 {[%emt 0:00:39]} bxc6 {[%emt 0:00:04]} 9. Bg2 {[%emt 0:01:37]} Nd5 {[%emt 0:00:11]} 10. Ne3 {[%emt 0:00:32]} e6 {[%emt 0:00:05]} 11. Nxc4 {[%emt 0:00:16]} Ba6 {[%emt 0:00:05]} 12. b3 {[%emt 0:02:24]} Bb4+ {[%emt 0:39:07]} 13. Bd2 {[%emt 0:00:22]} Ke7 {[%emt 0:00:39] A34: Symmetrical English: 2 Nc3, lines with ...d5.} 14. Rc1 {[%emt 0:06:26]} Rac8 {[%emt 0:01:58]} 15. Bxb4+ {[%emt 0:03:58]} Nxb4 {[%emt 0:00:04] White is slightly better.} 16. a3 {[%emt 0:02:59]} Nd5 {[%emt 0:00:06]} 17. Na5 {[%emt 0:01:19]} c5 {[%emt 0:00:09]} 18. O-O {[%emt 0:01:11]} Rhd8 {[%emt 0:05:56]} (18... Bxe2 $2 19. Rfe1 $18) 19. Rc2 {[%emt 0:13:45]} Rd7 {[%emt 0:02:45][%cal Oc5c4]} 20. Rfc1 {[%emt 0:00:55]} Rdc7 {[%emt 0:00:30]} 21. e4 {[%emt 0:03:32]} Nb6 {[%emt 0:02:47]} 22. Bf1 {[%emt 0:02:02]} Bxf1 {[%emt 0:00:07]} 23. Kxf1 {[%emt 0:00:05] [#]} g5 $146 {[%emt 0:01:09]} ({Predecessor:} 23... f5 24. Nc4 fxe4 25. Nd2 a5 26. Ke2 a4 27. b4 e3 28. fxe3 c4 29. h4 h5 {½-½ (36) Herbst,R-Bremecker,J freechess.de 2014}) 24. Ke2 {[%emt 0:01:39]} h5 {[%emt 0:05:26]} 25. h3 {[%emt 0:02:38]} f5 {[%emt 0:08:16]} 26. Ke3 {[%emt 0:01:04]} Kf6 {[%emt 0:00:30]} 27. f4 {[%emt 0:02:42]} gxf4+ {[%emt 0:03:27]} 28. Kxf4 {[%emt 0:00:58]} fxe4 {[%emt 0:07:21]} 29. Kxe4 {[%emt 0:00:11]} Ke7 {[%emt 0:00:24]} 30. g4 {[%emt 0:05:04]} hxg4 {[%emt 0:01:11]} 31. hxg4 {[%emt 0:00:04]} Kf6 {[%emt 0:03:18]} 32. g5+ {[%emt 0:02:32]} Kg6 {[%emt 0:00:26]} 33. Rf1 {[%emt 0:06:15]} (33. Nc4 $5 {[%cal Rc4e5]}) 33... Rd7 {[%emt 0:03:31] The position is equal.} 34. Rf6+ {[%emt 0:05:09]} Kxg5 {[%emt 0:00:14]} 35. Rxe6 {[%emt 0:00:03] Nc6 is the strong threat.} Rd4+ {[%emt 0:00:10]} 36. Kf3 {[%emt 0:00:06]} c4 {[%emt 0:03:48]} 37. Nxc4 {[%emt 0:01:11]} Nxc4 {[%emt 0:00:17]} 38. bxc4 {[%emt 0:00:08]} Rcxc4 {[%emt 0:00:50]} 39. Rxc4 {[%emt 0:00:08]} Rxc4 $11 {[%emt 0:00:03][%mdl 4096] Endgame KR-KR} 40. Ra6 {[%emt 0:00:05]} Kf5 {[%emt 0:00:17]} 41. Ke3 {[%emt 0:30:05]} Ke5 {[%emt 0:30:10]} 42. Rxa7 {[%emt 0:00:05]} Kd6 {[%emt 0:00:22]} 43. Kd3 {[%emt 0:00:03]} Rh4 {[%emt 0:00:06]} 44. Ra5 {[%emt 0:00:04]} Kc6 {[%emt 0:00:05]} 45. Kc3 {[%emt 0:00:04]} Kb6 {[%emt 0:00:04]} 46. Rg5 {[%emt 0:00:03]} Kb7 {[%emt 0:00:07]} 47. Kb3 {[%emt 0:00:03]} Rf4 {[%emt 0:00:05]} 48. Rb5+ {[%emt 0:00:04]} Ka6 {[%emt 0:00:06]} 49. Rb4 {[%emt 0:00:03]} Rf5 {[%emt 0:00:16]} 50. Ra4+ {[%emt 0:00:05]} Kb6 {[%emt 0:00:03]} 51. Rc4 {[%emt 0:00:04]} Ka6 {[%emt 0:00:04]} 52. Rc3 {[%emt 0:00:05]} Kb6 {[%emt 0:00:06]} 53. a4 {[%emt 0:00:03]} Rf4 {[%emt 0:00:05]} 54. Rh3 {[%emt 0:00:03]} Rg4 {[%emt 0:00:06]} 55. Rh6+ {[%emt 0:00:02]} Ka5 {[%emt 0:00:08]} 56. Rh5+ {[%emt 0:00:04]} Kb6 {[%emt 0:00:04]} 57. Rb5+ {[%emt 0:00:03]} Ka6 {[%emt 0:00:05]} 58. Rb4 {[%emt 0:00:02]} Rg3+ {[%emt 0:00:06]} 59. Kb2 {[%emt 0:00:03]} Rg2+ {[%emt 0:00:04]} 60. Ka3 {[%emt 0:00:02]} Rg3+ {[%emt 0:00:05]} 61. Rb3 {[%emt 0:00:03]} Rxb3+ {[%emt 0:00:09]} 62. Kxb3 {[%emt 0:00:04] KP-K} Ka7 {[%emt 0:00:04]} 63. a5 {[%emt 0:00:03]} Ka8 {[%emt 0:00:03]} 64. Kb4 {[%emt 0:00:03]} Ka7 {[%emt 0:00:03]} 65. Kb5 {[%emt 0:00:02]} Ka8 {[%emt 0:00:04]} 66. Kb6 {[%emt 0:00:03]} Kb8 {[%emt 0:00:03]} 67. a6 {[%emt 0:00:02]} Ka8 {[%emt 0:00:02]} 68. a7 {[%emt 0:00:03] Weighted Error Value: White=0.03 (flawless) /Black=0.01 (flawless)} 1/2-1/2